bitfinex/quotes_ETHUSD_20241204
["timestamp","ask_amount","ask_price","bid_price","bid_amount"]
[1733316362863,2.54027113,3717.2,3716.2,1.6504]
[1733316363064,2.54027113,3717.2,3716.4,2.6907]
[1733316363325,0.55,3717.1,3716.2,1.6504]
[1733316363801,1.639,3717.0,3716.2,2.6909]
[1733316363932,1.639,3717.0,3716.3,0.52978349]
[1733316364130,1.639,3717.0,3716.4,2.69076]
[1733316364347,2.54027113,3716.8,3716.2,2.6909]
[1733316364639,2.54027113,3716.8,3715.9,0.54786998]
[1733316364835,2.54027113,3716.8,3716.1,2.69097]
[1733316365704,0.55,3716.9,3716.1,2.69097]
[1733316365928,0.79780646,3716.9,3716.1,2.69093]
[1733316366102,0.79780646,3716.9,3715.5,1.6253]
[1733316366297,3.17259653,3716.6,3715.5,1.6253]
[1733316366513,3.17259653,3716.6,3715.6,0.53177515]
[1733316366514,1.6663,3716.4,3715.6,0.53177515]
[1733316366737,3.17259653,3716.2,3715.3,2.69156]
[1733316367017,0.55,3716.1,3715.1,1.6257]
[1733316367239,0.55,3715.9,3715.0,2.69173]
[1733316367389,0.55,3715.9,3715.1,2.69165]
[1733316367590,0.55,3715.9,3715.2,2.69163]
[1733316368831,1.5354,3715.8,3715.0,2.69176]
[1733316368993,1.5354,3715.8,3714.7,2.69196]
[1733316368994,1.5354,3715.8,3715.1,2.69166]
[1733316369324,1.5354,3715.8,3715.2,2.69157]
[1733316369631,1.5354,3715.8,3714.7,0.5366969]
[1733316369931,1.5354,3715.8,3714.9,2.69186]
[1733316370097,1.5354,3715.8,3715.3,2.69153]
[1733316370308,1.5354,3715.8,3715.3,2.69151]
[1733316371123,1.5354,3715.8,3714.8,0.62288369]
[1733316371124,1.5354,3715.8,3715.5,2.69136]
[1733316371328,1.5354,3715.8,3715.6,2.69134]
[1733316371534,1.5354,3715.8,3714.8,3.62288369]
[1733316371535,0.55,3715.7,3714.8,6.31477369]
[1733316371835,0.55,3715.7,3715.0,2.69172]
[1733316372038,0.55,3715.5,3714.5,2.69209]
[1733316372645,0.55,3715.5,3714.8,2.69186]
[1733316372948,0.55,3715.3,3714.8,2.69192]
[1733316373156,0.55,3715.3,3715.0,2.69173]
[1733316373537,0.55,3715.3,3714.7,2.69193]
[1733316373732,0.55,3715.3,3714.8,2.6919]
[1733316374270,0.55,3715.3,3714.4,1.5405]
[1733316374436,0.55,3715.3,3714.5,2.69215]
[1733316374757,0.55,3715.3,3714.4,1.74908159]
[1733316374758,0.55,3715.3,3715.1,2.69171]
[1733316374962,0.55,3715.5,3715.1,2.69171]
[1733316375155,0.55,3715.5,3714.6,2.69207]
[1733316375156,0.55,3715.5,3714.9,2.69185]
[1733316375362,0.55,3715.5,3715.1,2.69169]
[1733316375679,0.55,3715.5,3714.8,2.69193]
[1733316375983,0.55,3715.5,3715.0,2.69174]
[1733316376339,0.55,3715.3,3714.7,2.69193]
[1733316376591,0.55,3715.3,3714.4,1.5405]
[1733316376879,0.55,3715.3,3715.0,2.69177]
[1733316377468,0.55,3715.3,3714.6,2.69207]
[1733316377680,0.55,3715.5,3715.0,2.69172]
[1733316378385,0.55,3715.5,3714.4,1.5405]
[1733316378556,0.55,3715.3,3714.4,1.5405]
[1733316378731,0.55,3715.3,3714.8,2.69193]
[1733316378971,0.55,3715.3,3714.4,1.5405]
[1733316379485,0.55,3715.5,3714.6,2.69207]
[1733316379639,0.55,3715.5,3714.7,2.69193]
[1733316379976,0.55,3715.1,3714.7,2.69193]
[1733316380172,3.17259653,3715.0,3714.2,2.69232]
[1733316380372,0.55,3714.9,3714.3,2.69227]
[1733316380863,0.55,3714.9,3714.0,0.53184926]
[1733316381167,0.55,3714.9,3714.8,2.69193]
[1733316381373,0.55,3714.9,3714.6,2.69206]
[1733316381742,0.55,3714.9,3714.3,2.69227]
[1733316381942,0.55,3714.9,3714.5,2.69212]
[1733316382607,0.55,3714.9,3714.1,0.0269195]
[1733316382748,0.55,3714.9,3714.8,2.69193]
[1733316382939,1.5418,3715.0,3714.8,2.69193]
[1733316383333,1.5418,3715.0,3714.9,2.69186]
[1733316383934,1.5165,3715.6,3714.9,2.69186]
[1733316384236,1.5165,3715.6,3715.5,2.69142]
[1733316384626,1.5165,3716.1,3715.8,2.69115]
[1733316385271,1.5165,3716.1,3716.0,2.69106]
[1733316385434,1.6506,3716.5,3716.4,2.69072]
[1733316385773,1.6506,3716.5,3716.2,2.6909]
[1733316385774,5.6506,3716.5,3716.2,2.6909]
[1733316386059,1.6506,3716.5,3716.3,2.69082]
[1733316386260,1.6506,3716.5,3715.2,1.6066]
[1733316386447,1.6506,3716.5,3716.4,2.664857]
[1733316386651,1.6506,3716.5,3716.3,2.69084]
[1733316386859,0.55,3716.4,3715.7,2.69128]
[1733316387164,0.55,3716.4,3715.9,2.69107]
[1733316387368,0.55,3716.4,3716.0,2.691]
[1733316387666,0.55,3716.4,3715.9,2.69108]
[1733316387964,0.55,3716.4,3716.2,2.69091]
[1733316388667,0.55,3716.4,3715.5,0.53819172]
[1733316388965,0.55,3716.1,3715.9,2.69112]
[1733316390037,0.55,3716.1,3716.0,2.69106]
[1733316390343,0.55,3716.4,3716.2,2.69085]
[1733316390569,0.55,3716.4,3716.2,2.69086]
[1733316390941,0.55,3716.4,3715.8,2.69118]
[1733316390942,0.55,3716.2,3715.8,2.69118]
[1733316391186,0.55,3715.9,3715.7,2.69126]
[1733316391475,0.55,3715.9,3715.2,2.69158]
[1733316391476,0.55,3715.7,3715.2,2.69158]
[1733316391668,0.55,3715.4,3715.2,2.69158]
[1733316392083,0.55,3715.4,3715.0,2.69178]
[1733316392489,0.55,3715.2,3713.3,1.8096]
[1733316392692,0.55,3715.2,3714.9,2.69184]
[1733316393549,0.55,3715.2,3715.0,2.69177]
[1733316395568,0.55,3715.1,3715.0,2.69177]
[1733316395767,1.6564,3715.3,3715.0,2.69177]
[1733316395768,0.55,3715.2,3715.0,2.69177]
[1733316396294,0.55,3715.0,3714.1,4.77990962]
[1733316396448,0.55,3714.8,3714.0,2.69251]
[1733316396841,0.55,3714.8,3714.7,2.692]
[1733316397073,8.84,3715.6,3714.9,2.69186]
[1733316397074,1.5302,3715.4,3714.9,2.69186]
[1733316397308,1.5302,3715.4,3715.2,2.69164]
[1733316397309,0.24865963,3715.3,3715.2,2.69164]
[1733316397695,1.5302,3715.4,3715.3,2.69157]
[1733316397892,1.77894277,3715.4,3715.3,2.69157]
[1733316398588,2.32894277,3715.4,3715.3,2.69157]
[1733316398782,0.55,3715.3,3715.1,2.69169]
[1733316399122,0.55,3715.3,3714.4,1.5334]
[1733316399285,0.55,3715.3,3715.2,2.69164]
[1733316399479,0.79873406,3715.3,3715.2,2.69164]
[1733316399685,0.55,3715.3,3715.2,2.69164]
[1733316399886,0.79872426,3715.3,3715.2,2.69164]
[1733316400081,9.39,3715.7,3715.6,2.69135]
[1733316400395,0.55,3715.6,3715.5,2.69142]
[1733316400610,0.79873247,3715.6,3715.5,2.69142]
[1733316401210,0.79873247,3715.6,3714.7,0.5308428]
[1733316401524,4.0801527,3715.9,3714.7,0.5308428]
[1733316401525,0.55,3715.7,3715.5,2.69142]
[1733316401725,0.24870306,3715.6,3715.5,2.69142]
[1733316401886,0.79870306,3715.6,3715.5,2.69142]
[1733316402710,0.79870306,3715.6,3714.7,0.5308428]
[1733316402924,0.24870306,3715.5,3715.4,2.69142]
[1733316405732,0.24870306,3715.5,3714.7,1.37874508]
[1733316405733,0.55,3715.4,3715.2,2.69162]
[1733316405899,0.24870306,3715.3,3715.2,2.69162]
[1733316406095,0.24870306,3715.3,3715.0,2.69173]
[1733316406294,0.55,3715.4,3715.0,2.69173]
[1733316406498,0.55,3715.0,3714.9,2.69179]
[1733316406820,0.79875275,3715.0,3714.9,2.69179]
[1733316407838,0.79875275,3715.0,3714.6,2.69203]
[1733316408129,0.79875275,3715.0,3714.1,4.31859]
[1733316408130,0.55,3714.8,3714.5,2.69208]
[1733316408330,0.24875275,3714.7,3714.5,2.69208]
[1733316408589,0.55,3714.8,3714.6,2.69207]
[1733316408712,0.24856514,3714.7,3714.6,2.69207]
[1733316408892,0.24856514,3714.7,3714.1,1.6262]
[1733316408893,0.24856514,3714.7,3714.4,2.69219]
[1733316409097,0.55,3715.0,3714.2,2.69236]
[1733316409296,0.55,3714.8,3714.5,2.69208]
[1733316409536,0.24851968,3714.7,3714.5,2.69208]
[1733316409740,0.55,3714.9,3714.1,1.6262]
[1733316409908,0.55,3714.7,3714.6,2.69201]
[1733316410322,0.55,3715.0,3714.6,2.69201]
[1733316410637,0.55,3714.8,3714.6,2.69201]
[1733316410849,0.55,3714.8,3714.1,1.6262]
[1733316410850,0.55,3715.0,3714.1,1.6262]
[1733316411132,0.39759396,3715.4,3715.3,2.69157]
[1733316411334,0.39759396,3715.4,3714.2,2.93622489]
[1733316411335,0.24850019,3715.4,3714.8,4.24953]
[1733316411537,0.24850019,3715.3,3715.0,2.69174]
[1733316411696,4.55994666,3715.6,3715.0,2.69174]
[1733316411897,0.24848012,3715.5,3714.5,1.5576]
[1733316412240,0.24848012,3715.4,3715.2,2.69162]
[1733316412424,0.79848012,3715.3,3715.2,2.69162]
[1733316413335,0.24851144,3715.3,3715.0,2.69179]
[1733316413535,0.55,3715.5,3714.5,2.10036993]
[1733316413839,4.1623527,3715.6,3715.2,2.69158]
[1733316413840,0.55,3715.3,3715.2,2.69158]
[1733316413997,0.79849803,3715.3,3715.2,2.69158]
[1733316414396,0.79848989,3715.5,3715.2,2.69158]
[1733316414633,0.55,3715.3,3715.2,2.69164]
[1733316415012,0.79849079,3715.5,3715.3,2.6915]
[1733316415212,0.55,3715.5,3715.3,2.6915]
[1733316415409,0.55,3715.5,3715.4,2.6915]
[1733316415614,0.79847454,3715.5,3715.2,2.69161]
[1733316415821,0.55,3715.3,3715.2,2.69161]
[1733316416025,0.55,3715.3,3714.1,3.0]
[1733316416288,0.55,3714.9,3714.2,2.69236]
[1733316416609,0.55,3714.9,3714.7,2.69195]
[1733316416996,0.55,3714.9,3714.3,2.69229]
[1733316417304,0.55,3715.1,3714.8,2.69188]
[1733316417515,0.55,3715.1,3714.2,2.69236]
[1733316417804,0.55,3715.1,3714.7,2.69196]
[1733316417990,0.7984574,3715.1,3714.9,2.69186]
[1733316418193,0.7984574,3715.1,3715.0,2.69179]
[1733316418369,0.55,3715.1,3715.0,2.69179]
[1733316418733,0.79851442,3715.3,3715.2,2.69164]
[1733316419708,0.79851442,3715.3,3714.7,4.26634]
[1733316419866,0.55,3715.3,3714.7,4.26634]
[1733316420069,0.55,3715.3,3714.7,2.69194]
[1733316420267,2.5440527,3715.0,3714.0,1.5312]
[1733316420464,0.55,3714.9,3714.3,2.69229]
[1733316420679,0.55,3714.9,3714.8,2.69193]
[1733316421206,1.5814,3715.2,3715.1,2.69171]
[1733316421367,0.24872826,3715.2,3715.1,2.69171]
[1733316421569,0.24875023,3715.5,3715.1,2.69166]
[1733316421918,1.5814,3715.6,3714.8,1.5312]
[1733316421919,2.79280293,3715.4,3715.3,2.69157]
[1733316422070,2.79280293,3715.4,3715.1,2.69168]
[1733316422275,0.24875023,3715.3,3715.1,2.69168]
[1733316422586,2.5440527,3715.4,3715.1,2.69168]
[1733316422779,0.79871597,3715.3,3715.1,2.69166]
[1733316423089,0.8954465,3715.3,3714.4,2.69217]
[1733316423270,2.5440527,3715.4,3714.4,2.69217]
[1733316423271,0.55,3715.1,3714.4,2.69217]
[1733316423654,0.55,3714.9,3714.7,2.69194]
[1733316424812,0.55,3714.9,3714.8,2.69193]
[1733316426483,0.55,3715.1,3714.5,2.6921]
[1733316426812,0.55,3714.9,3714.1,2.09680495]
[1733316427008,0.55,3714.9,3714.4,2.69215]
[1733316427511,2.1918,3714.5,3714.2,2.69233]
[1733316428110,0.55,3714.8,3714.7,2.692]
[1733316428310,0.79853273,3714.8,3714.7,2.692]
[1733316428485,0.55,3714.8,3714.7,2.692]
[1733316428691,0.55,3714.9,3714.8,2.69193]
[1733316428867,1.613,3715.3,3715.1,2.69169]
[1733316429070,1.613,3715.3,3715.2,2.69164]
[1733316429303,1.86153513,3715.3,3715.2,2.69164]
[1733316429520,1.86153513,3715.3,3715.0,2.69176]
[1733316429684,0.24853513,3715.2,3715.0,2.69176]
[1733316429881,2.5440527,3715.4,3714.5,2.69215]
[1733316430111,0.2485538,3715.3,3714.8,2.69189]
[1733316430413,0.7985538,3715.2,3715.0,2.69173]
[1733316430574,0.55,3715.2,3715.1,2.69171]
[1733316430770,0.79863372,3715.2,3715.1,2.69171]
[1733316435326,0.24863372,3715.2,3715.1,2.69171]
[1733316435521,0.55,3715.4,3715.0,1.5258]
[1733316435686,0.24901721,3715.3,3714.6,4.21787]
[1733316436018,0.24901721,3715.3,3714.8,2.69191]
[1733316436019,0.55,3715.1,3714.8,2.69191]
[1733316436218,0.55,3714.9,3714.5,2.69208]
[1733316436423,0.24901721,3714.8,3714.5,2.69208]
[1733316436629,0.24901721,3714.7,3714.2,0.53001895]
[1733316436807,0.55,3714.6,3714.4,2.69217]
[1733316437011,0.55,3714.9,3714.4,2.69217]
[1733316437321,0.55,3714.7,3714.5,2.69213]
[1733316437627,0.79894135,3714.6,3714.5,2.69213]
[1733316437795,0.79895835,3714.6,3714.5,2.69213]
[1733316438121,0.55,3714.9,3714.5,2.69213]
[1733316438312,0.55,3714.7,3714.5,2.69213]
[1733316438689,0.55,3714.9,3714.5,2.69213]
[1733316438881,0.55,3714.7,3714.5,2.69213]
[1733316439099,0.55,3714.9,3714.5,2.69213]
[1733316439299,0.55,3714.7,3714.6,2.69207]
[1733316439696,0.3983158,3715.1,3714.9,2.69186]
[1733316439920,0.24896981,3715.0,3714.9,2.69186]
[1733316440285,1.652,3715.3,3715.2,2.69164]
[1733316440486,0.24898064,3715.3,3714.6,1.5023]
[1733316440719,0.39837805,3715.6,3715.3,2.69152]
[1733316440887,0.64737457,3715.5,3715.3,2.69152]
[1733316441091,8.84,3715.7,3715.3,2.69152]
[1733316441092,0.24899652,3715.4,3715.3,2.69152]
[1733316441819,0.79899652,3715.4,3715.3,2.69152]
[1733316443021,0.24899652,3715.4,3715.3,2.69152]
[1733316443227,0.24910361,3715.4,3715.3,2.69152]
[1733316443640,0.55,3715.6,3715.5,2.69142]
[1733316443836,8.84,3715.7,3715.6,2.69135]
[1733316444149,9.08912848,3715.7,3715.6,2.69135]
[1733316445455,0.79912848,3715.7,3715.6,2.69135]
[1733316447193,0.24912848,3715.7,3715.6,2.69135]
[1733316447350,0.24894084,3715.9,3715.8,2.69121]
[1733316450477,0.55,3716.1,3716.0,2.69106]
[1733316450676,0.79880538,3716.1,3716.0,2.69106]
[1733316451684,0.24880538,3716.2,3716.0,2.69106]
[1733316451902,0.24880538,3716.4,3716.1,2.69099]
[1733316452053,1.6251,3716.8,3716.1,2.69099]
[1733316452054,1.51349192,3716.8,3716.7,2.69055]
[1733316452399,0.24877632,3716.8,3716.7,2.69055]
[1733316452690,1.11495493,3717.3,3716.2,1.865799]
[1733316452691,0.24877632,3717.0,3716.9,2.69041]
[1733316452851,0.39853699,3717.3,3716.5,2.69066]
[1733316452852,0.24877632,3717.2,3716.5,2.69066]
[1733316453042,0.24877632,3717.1,3717.0,2.69032]
[1733316453247,0.24877632,3717.3,3717.2,2.69019]
[1733316453442,2.74005493,3717.7,3717.3,2.69012]
[1733316453443,0.24877632,3717.6,3717.3,2.69012]
[1733316453682,0.24877632,3717.5,3717.3,2.69012]
[1733316453888,0.24877632,3717.6,3717.3,2.69012]
[1733316454073,0.24877632,3717.5,3717.3,2.69012]
[1733316454390,1.87387632,3717.7,3717.1,2.69025]
[1733316454688,0.55,3717.5,3716.8,4.28714]
[1733316454986,0.55,3717.5,3717.3,2.69011]
[1733316455151,0.55,3717.6,3717.3,2.69011]
[1733316455475,0.55,3717.6,3716.8,1.5967]
[1733316455878,9.0,3718.2,3716.8,1.5967]
[1733316455879,10.3535,3718.1,3716.8,1.62360069]
[1733316456098,10.3535,3718.1,3717.9,2.68965]
[1733316456399,9.0,3718.2,3718.1,2.68954]
[1733316460390,9.0,3718.2,3717.5,4.19191]
[1733316460599,9.0,3718.2,3717.7,2.68983]
[1733316460761,9.0,3718.2,3718.1,2.68954]
[1733316461893,9.0,3718.2,3717.6,2.68986]
[1733316462060,9.0,3718.2,3718.0,2.68958]
[1733316462457,9.0,3718.2,3717.5,1.502]
[1733316462766,9.0,3718.2,3718.1,2.68954]
[1733316468616,9.0,3718.2,3717.5,2.68997]
[1733316468617,11.5440527,3718.2,3717.5,2.68997]
[1733316468871,11.5440527,3718.2,3718.0,2.6896]
[1733316469521,0.55,3718.1,3717.7,2.68976]
[1733316470031,0.55,3718.1,3717.5,2.68995]
[1733316470212,0.55,3718.1,3717.4,0.52515951]
[1733316470530,0.55,3718.1,3717.7,2.68977]
[1733316470894,0.55,3718.1,3716.7,1.6587]
[1733316470895,2.5440527,3717.8,3716.7,1.6587]
[1733316471097,1.6209,3718.0,3716.7,1.6587]
[1733316471098,2.5440527,3717.4,3717.1,2.69024]
[1733316471330,0.55,3717.3,3717.0,2.69028]
[1733316472002,0.55,3717.3,3716.9,3.2281853]
[1733316472326,0.55,3717.3,3716.9,0.5377953]
[1733316472726,0.55,3717.3,3717.0,2.69031]
[1733316473246,2.1673,3717.3,3716.9,0.5377953]
[1733316473460,3.0940527,3717.0,3716.9,0.5377953]
[1733316473752,4.6615527,3717.0,3716.9,0.5377953]
[1733316475553,4.90943182,3717.0,3716.9,0.5377953]
[1733316476406,4.90943182,3717.0,3715.8,1.5516]
[1733316476407,0.55,3716.9,3715.8,1.5516]
[1733316476639,2.5440527,3716.4,3716.0,2.69104]
[1733316476844,2.5440527,3716.4,3715.8,1.5516]
[1733316477008,0.55,3716.3,3715.8,4.24278]
[1733316477442,0.55,3716.3,3715.9,2.69113]
[1733316477858,2.5440527,3716.4,3715.8,2.09691111]
[1733316478022,2.5440527,3716.4,3716.3,2.69084]
[1733316478848,2.5440527,3716.8,3716.7,2.69055]
[1733316479048,2.5440527,3716.8,3716.7,4.29845]
[1733316479265,2.5440527,3717.2,3717.1,2.69019]
[1733316479951,1.5513,3717.9,3717.3,2.6901]
[1733316480168,2.4265347,3717.6,3717.3,2.6901]
[1733316480763,1.5513,3717.9,3717.3,2.6901]
[1733316480934,2.5440527,3717.4,3717.3,2.6901]
[1733316481134,2.5440527,3717.4,3717.3,2.95911]
[1733316481629,2.5440527,3717.8,3717.4,1.5836]
[1733316481929,2.5440527,3717.8,3717.4,4.27362]
[1733316482159,2.5440527,3717.8,3717.4,2.69002]
[1733316482363,2.5440527,3717.8,3717.3,0.26901]
[1733316482625,2.5440527,3717.8,3717.6,2.68989]
[1733316482832,2.5440527,3717.8,3717.4,2.69003]
[1733316483139,2.5440527,3717.8,3717.3,0.26901]
[1733316483339,2.5440527,3717.8,3717.5,2.68997]
[1733316483543,2.5440527,3717.8,3717.3,2.95911]
[1733316483781,0.24860891,3717.7,3717.4,2.69005]
[1733316484069,2.5440527,3717.8,3717.4,2.69005]
[1733316484430,0.55,3717.7,3716.8,1.5888]
[1733316484628,2.5440527,3717.8,3716.9,0.15888]
[1733316484828,2.5440527,3717.8,3717.5,2.68991]
[1733316485063,2.5440527,3717.8,3717.0,2.69034]
[1733316485268,0.55,3717.7,3716.9,2.84925]
[1733316485473,0.55,3717.5,3717.0,0.743805]
[1733316485765,0.55,3717.5,3717.2,2.69019]
[1733316485974,0.55,3717.5,3717.0,0.743805]
[1733316486176,0.55,3717.7,3717.0,3.434115]
[1733316486470,0.55,3717.7,3717.3,2.69009]
[1733316486689,0.55,3717.7,3717.0,3.434115]
[1733316486843,0.55,3717.7,3717.4,2.69002]
[1733316487184,0.55,3718.0,3717.2,1.6537]
[1733316487330,0.55,3718.0,3717.4,2.69]
[1733316487331,2.5440527,3717.8,3717.4,2.69]
[1733316487666,0.55,3717.8,3717.5,2.68997]
[1733316487874,0.55,3717.8,3717.2,1.6537]
[1733316488056,0.55,3717.8,3717.5,2.6899]
[1733316490157,0.55,3717.6,3716.8,0.53389405]
[1733316490337,2.5440527,3717.4,3717.2,2.69013]
[1733316490671,2.0925,3717.3,3716.5,2.69063]
[1733316490869,2.5440527,3717.0,3716.3,1.5265]
[1733316491070,2.0925,3716.9,3716.5,2.6907]
[1733316491278,2.0925,3716.9,3716.2,2.69087]
[1733316491560,2.0925,3716.9,3716.1,0.54545307]
[1733316491561,0.55,3716.9,3716.8,2.69048]
[1733316491850,1.5189,3717.2,3717.1,2.69026]
[1733316492048,0.55,3717.1,3716.9,2.69039]
[1733316492348,0.55,3717.1,3716.5,1.5439]
[1733316492504,0.55,3717.1,3716.7,2.69053]
[1733316492902,2.5440527,3717.0,3716.5,2.69069]
[1733316493141,0.55,3716.9,3716.5,2.69069]
[1733316493313,0.55,3716.9,3716.2,2.69092]
[1733316493526,0.55,3716.9,3716.1,3.23638307]
[1733316493527,0.55,3716.9,3716.5,2.69063]
[1733316495129,0.55,3716.9,3716.3,0.59273031]
[1733316495445,2.5440527,3717.4,3717.1,2.69026]
[1733316495745,0.24862409,3717.3,3717.1,2.69026]
[1733316496998,2.5440527,3717.4,3716.7,4.30134]
[1733316496999,2.5440527,3717.4,3717.3,2.69012]
[1733316497743,2.5440527,3717.4,3716.8,0.430134]
[1733316497955,2.5440527,3717.4,3716.7,1.6108]
[1733316498254,1.6295,3717.9,3716.8,0.02690132]
[1733316498407,2.79294002,3717.8,3717.5,2.68994]
[1733316498612,0.24888732,3717.7,3716.7,1.6108]
[1733316498902,0.24888913,3717.7,3717.6,2.6899]
[1733316499099,2.5440527,3717.8,3717.6,2.6899]
[1733316499513,2.5440527,3717.8,3717.4,2.69003]
[1733316500135,2.5440527,3717.8,3716.8,0.02689904]
[1733316500439,2.5440527,3717.8,3717.6,2.68988]
[1733316501241,2.5440527,3717.8,3717.7,2.68983]
[1733316501451,2.5440527,3717.8,3717.5,2.68995]
[1733316501646,2.5440527,3717.8,3717.5,2.68991]
[1733316502404,2.5440527,3717.8,3717.2,2.69012]
[1733316502641,0.2487785,3717.7,3717.1,2.14730327]
[1733316502858,2.5440527,3717.8,3717.5,2.68991]
[1733316503848,0.24875088,3717.7,3717.5,2.68991]
[1733316504042,2.5440527,3717.8,3717.5,2.68991]
[1733316504436,2.5440527,3717.8,3717.4,2.69004]
[1733316504740,2.5440527,3717.8,3717.5,2.68997]
[1733316505071,0.24879416,3717.7,3717.1,1.6023]
[1733316505353,2.5440527,3717.6,3717.2,0.17660699]
[1733316505713,4.1699527,3717.6,3717.1,2.69021]
[1733316505915,2.5440527,3717.2,3717.1,2.69021]
[1733316508624,2.5440527,3717.2,3716.8,2.69042]
[1733316508832,2.5440527,3717.2,3716.4,1.5271]
[1733316509044,2.5440527,3716.8,3716.1,1.5271]
[1733316509244,2.5440527,3716.8,3716.3,2.69078]
[1733316509461,2.5440527,3716.8,3716.4,2.69075]
[1733316510662,0.24895355,3716.7,3716.4,2.69075]
[1733316510867,2.5440527,3716.8,3716.4,2.69075]
[1733316511072,0.24894758,3716.7,3716.4,2.69075]
[1733316511387,2.5440527,3716.8,3716.3,2.69084]
[1733316511566,0.24894079,3716.7,3716.3,2.69084]
[1733316511763,0.24894079,3716.6,3716.3,2.69084]
[1733316511993,2.5440527,3716.8,3716.3,2.69084]
[1733316512159,0.24893351,3716.7,3716.1,2.06310077]
[1733316512503,2.5440527,3716.8,3716.6,2.69063]
[1733316512651,0.24890891,3716.7,3716.4,2.69075]
[1733316512851,2.5440527,3716.8,3716.4,2.69075]
[1733316513056,0.24889613,3716.7,3716.5,2.69067]
[1733316513291,2.5440527,3716.8,3716.5,2.69067]
[1733316513492,0.24887394,3716.7,3716.5,2.69067]
[1733316513796,2.5440527,3716.8,3716.5,2.69067]
[1733316514032,0.24883779,3716.7,3716.5,2.69067]
[1733316514154,2.5440527,3716.8,3716.5,2.69067]
[1733316514351,0.24884085,3716.7,3716.5,2.69067]
[1733316514551,2.5440527,3716.8,3716.6,2.69063]
[1733316515196,0.24881088,3716.7,3716.4,2.69075]
[1733316515493,2.5440527,3716.8,3716.4,2.69075]
[1733316515670,0.24879338,3716.7,3716.1,2.26941085]
[1733316515850,2.5440527,3716.8,3716.3,2.69083]
[1733316516051,0.24879626,3716.7,3716.3,2.69083]
[1733316516296,2.5440527,3716.8,3716.4,2.69071]
[1733316516498,0.24877925,3716.7,3716.4,2.69071]
[1733316516813,2.5440527,3716.8,3716.1,1.5271]
[1733316517114,0.24878696,3716.7,3716.5,2.69069]
[1733316517255,2.5440527,3716.8,3716.5,2.69069]
[1733316517655,0.24880596,3716.7,3716.5,2.69069]
[1733316517873,2.5440527,3716.8,3716.6,2.69063]
[1733316518287,0.2487929,3716.7,3716.6,2.69063]
[1733316518473,0.24881997,3716.7,3716.6,2.69063]
[1733316519404,0.39807979,3717.0,3716.9,2.69041]
[1733316519693,0.39807979,3717.0,3716.6,2.959653]
[1733316519694,0.24883914,3717.0,3716.6,2.959653]
[1733316519892,1.5494,3717.4,3717.0,2.6903]
[1733316520198,0.6469852,3717.3,3717.0,2.6903]
[1733316520415,0.24884046,3717.2,3717.1,2.69026]
[1733316522416,0.24884046,3717.2,3716.9,2.69038]
[1733316522620,0.24884046,3717.1,3716.6,2.69057]
[1733316522806,0.24884046,3717.0,3716.3,2.69084]
[1733316522987,1.5494,3717.4,3716.2,0.77484687]
[1733316522988,0.24884046,3716.9,3716.6,2.69059]
[1733316523217,0.24884046,3716.8,3716.4,2.69075]
[1733316523515,1.79824046,3716.7,3716.2,0.77484687]
[1733316523810,0.24884046,3716.6,3716.1,2.69097]
[1733316523970,0.24884046,3716.5,3716.1,2.69097]
[1733316524170,1.5494,3716.7,3716.3,2.69082]
[1733316524396,0.24875287,3716.6,3716.0,3.22136871]
[1733316524604,0.24875287,3716.5,3716.3,2.69079]
[1733316524798,1.5494,3716.7,3716.4,2.69077]
[1733316525019,0.24870376,3716.6,3716.4,2.69077]
[1733316525175,0.24870376,3716.5,3716.4,2.69077]
[1733316525513,0.24868709,3716.5,3716.4,2.69077]
[1733316526019,10.36943341,3717.4,3716.8,2.69048]
[1733316526020,0.39794385,3717.2,3716.8,2.69048]
[1733316526174,0.24872871,3717.1,3716.8,2.69048]
[1733316526378,1.5494,3717.7,3717.2,2.69012]
[1733316526585,0.64672609,3717.6,3717.2,2.69012]
[1733316526805,0.64672609,3717.5,3717.2,2.69012]
[1733316527019,0.2487408,3717.4,3716.9,0.02690146]
[1733316527184,0.39799495,3717.6,3717.4,2.69004]
[1733316527381,0.24874734,3717.5,3717.4,2.69004]
[1733316531238,0.24874734,3717.5,3716.8,3.0]
[1733316531439,5.2336627,3718.0,3716.6,1.6315]
[1733316531440,2.31298648,3717.4,3717.1,2.69025]
[1733316531634,1.55051372,3717.9,3716.6,1.6315]
[1733316531635,0.24874734,3717.3,3717.2,2.69018]
[1733316532636,1.79126529,3718.0,3717.3,2.69012]
[1733316532881,1.79126529,3718.0,3717.4,2.68998]
[1733316532882,1.623,3717.8,3717.4,2.68998]
[1733316533064,0.64691982,3717.7,3717.4,2.68998]
[1733316533258,0.64691982,3717.7,3716.7,2.12998357]
[1733316533259,0.64691982,3717.6,3717.5,2.68997]
[1733316533458,0.24881531,3717.6,3717.5,2.68997]
[1733316535708,0.24874959,3717.6,3717.5,2.68997]
[1733316540815,0.24874959,3717.6,3717.5,3.227983]
[1733316541015,9.0,3718.2,3717.5,3.227983]
[1733316541016,9.0,3718.2,3717.5,7.798683]
[1733316541223,9.0,3718.2,3718.1,2.68954]
[1733316541395,9.2486391,3718.2,3718.1,2.68954]
[1733316542226,9.0,3718.2,3718.1,2.68954]
[1733316543428,9.24845193,3718.2,3718.1,2.68954]
[1733316543631,9.0,3718.2,3718.1,2.68954]
[1733316548408,9.0,3718.2,3718.1,3.227466]
[1733316549094,9.24822473,3718.2,3718.1,2.68954]
[1733316549294,9.0,3718.2,3718.1,2.68954]
[1733316553338,9.0,3718.2,3718.1,7.27804]